[Event "Live Chess"]
[Site "Chess.com"]
[Date "2023.05.21"]
[Round "-"]
[White "Baturin_Yevgeniy"]
[Black "blowerd"]
[Result "1-0"]
[WhiteElo "1791"]
[BlackElo "1387"]
[TimeControl "300"]
[EndTime "16:43:25 PDT"]
[Termination "Baturin_Yevgeniy won by checkmate"]

1. d4 {[%clk 0:04:45.4]} 1... d5 {[%clk 0:04:57.2]} 2. c3 {[%clk 0:04:32.7]}
2... Bf5 {[%clk 0:04:54.8]} 3. Qb3 {[%clk 0:04:30.5]} 3... Bxb1 {[%clk
0:04:38.9]} 4. Qxb7 {[%clk 0:04:06.2]} 4... Nd7 {[%clk 0:04:35.2]} 5. Rxb1
{[%clk 0:03:57.5]} 5... e6 {[%clk 0:04:27.9]} 6. Bf4 {[%clk 0:03:51.1]} 6... Bd6
{[%clk 0:04:04.3]} 7. Bxd6 {[%clk 0:03:45.3]} 7... cxd6 {[%clk 0:04:02.5]} 8.
Qc6 {[%clk 0:03:35.6]} 8... Nf6 {[%clk 0:03:58.6]} 9. Qxd6 {[%clk 0:03:31.5]}
9... Ne4 {[%clk 0:03:53.1]} 10. Qa3 {[%clk 0:03:19.5]} 10... Qf6 {[%clk
0:03:49.6]} 11. Nf3 {[%clk 0:03:09.2]} 11... e5 {[%clk 0:03:44.9]} 12. e3 {[%clk
0:02:51.8]} 12... exd4 {[%clk 0:03:35.6]} 13. cxd4 {[%clk 0:02:14.2]} 13... Qe7
{[%clk 0:03:18.8]} 14. Qa5 {[%clk 0:02:02.3]} 14... Nb6 {[%clk 0:03:13.1]} 15.
Bb5+ {[%clk 0:01:57.1]} 15... Nd7 {[%clk 0:02:59.4]} 16. Ne5 {[%clk 0:01:44.9]}
16... Nf6 {[%clk 0:02:50.1]} 17. Bxd7+ {[%clk 0:01:21.5]} 17... Nxd7 {[%clk
0:02:47.6]} 18. Qxd5 {[%clk 0:01:14.2]} 18... Qb4+ {[%clk 0:02:31.3]} 19. Kf1
{[%clk 0:01:10.2]} 19... Nxe5 {[%clk 0:02:19.6]} 20. Qxa8+ {[%clk 0:01:07.6]}
20... Ke7 {[%clk 0:02:16.4]} 21. Qxh8 {[%clk 0:01:02.5]} 21... Qc4+ {[%clk
0:02:00.2]} 22. Kg1 {[%clk 0:01:00.4]} 22... Nd3 {[%clk 0:01:53.7]} 23. Qxg7
{[%clk 0:00:52.6]} 23... Qc2 {[%clk 0:01:50.5]} 24. Qg5+ {[%clk 0:00:49.8]}
24... f6 {[%clk 0:01:45.7]} 25. Qg7+ {[%clk 0:00:48.2]} 25... Ke6 {[%clk
0:01:42.8]} 26. Rf1 {[%clk 0:00:44.2]} 26... Nc1 {[%clk 0:01:36.4]} 27. g3
{[%clk 0:00:39.2]} 27... Ne2+ {[%clk 0:01:33.9]} 28. Kg2 {[%clk 0:00:38.2]}
28... Qe4+ {[%clk 0:01:12.3]} 29. Kh3 {[%clk 0:00:36.8]} 29... Qf5+ {[%clk
0:01:03.9]} 30. Qg4 {[%clk 0:00:35.6]} 30... Qxg4+ {[%clk 0:00:41.2]} 31. Kxg4
{[%clk 0:00:35.5]} 31... f5+ {[%clk 0:00:31.4]} 32. Kf3 {[%clk 0:00:33.8]} 32...
Nxg3 {[%clk 0:00:25.7]} 33. hxg3 {[%clk 0:00:31.4]} 33... h5 {[%clk 0:00:21.7]}
34. Rxh5 {[%clk 0:00:30.1]} 34... a5 {[%clk 0:00:20.2]} 35. Rh6+ {[%clk
0:00:28.3]} 35... Kf7 {[%clk 0:00:17.8]} 36. Rc1 {[%clk 0:00:28.2]} 36... a4
{[%clk 0:00:16.3]} 37. Ra6 {[%clk 0:00:26.2]} 37... a3 {[%clk 0:00:15.2]} 38.
Rc7+ {[%clk 0:00:25.6]} 38... Ke8 {[%clk 0:00:13]} 39. Ra8# {[%clk 0:00:25.5]}
1-0

[Event "Live Chess"]
[Site "Chess.com"]
[Date "2023.05.21"]
[Round "-"]
[White "CheckThis4"]
[Black "DerbyKnight"]
[Result "1-0"]
[WhiteElo "2541"]
[BlackElo "1546"]
[TimeControl "300"]
[EndTime "16:43:27 PDT"]
[Termination "CheckThis4 won by checkmate"]

1. d4 {[%clk 0:04:57.3]} 1... d5 {[%clk 0:04:59]} 2. Nc3 {[%clk 0:04:56.6]} 2...
Nf6 {[%clk 0:04:55.3]} 3. e4 {[%clk 0:04:55.8]} 3... Nxe4 {[%clk 0:04:49.8]} 4.
Nxe4 {[%clk 0:04:54.1]} 4... dxe4 {[%clk 0:04:48.9]} 5. Bc4 {[%clk 0:04:53.6]}
5... Bf5 {[%clk 0:04:41.2]} 6. g4 {[%clk 0:04:49.6]} 6... Bg6 {[%clk 0:04:40]}
7. Ne2 {[%clk 0:04:48.6]} 7... c5 {[%clk 0:04:32.6]} 8. h4 {[%clk 0:04:44.1]}
8... h5 {[%clk 0:04:27.9]} 9. Nf4 {[%clk 0:04:35.9]} 9... Qxd4 {[%clk
0:04:22.9]} 10. Qe2 {[%clk 0:04:32.7]} 10... e5 {[%clk 0:03:57.3]} 11. Nxg6
{[%clk 0:04:29.7]} 11... fxg6 {[%clk 0:03:56.1]} 12. c3 {[%clk 0:04:26.9]} 12...
Qd6 {[%clk 0:03:46.2]} 13. Bg5 {[%clk 0:04:20.2]} 13... Be7 {[%clk 0:03:44.7]}
14. Rd1 {[%clk 0:04:15.4]} 14... Qc7 {[%clk 0:03:38.8]} 15. Qxe4 {[%clk
0:04:12.3]} 15... Nc6 {[%clk 0:03:32]} 16. Qxg6+ {[%clk 0:04:10]} 16... Kf8
{[%clk 0:03:26.8]} 17. Qf7# {[%clk 0:04:08.7]} 1-0

[Event "Live Chess"]
[Site "Chess.com"]
[Date "2023.05.21"]
[Round "-"]
[White "Olisingapore"]
[Black "wot-not"]
[Result "1-0"]
[WhiteElo "1827"]
[BlackElo "1542"]
[TimeControl "300"]
[EndTime "16:43:39 PDT"]
[Termination "Olisingapore won by resignation"]

1. d4 {[%clk 0:04:57.7]} 1... Nf6 {[%clk 0:04:57.9]} 2. c4 {[%clk 0:04:56.8]}
2... c5 {[%clk 0:04:57]} 3. d5 {[%clk 0:04:55.6]} 3... d6 {[%clk 0:04:55.6]} 4.
g3 {[%clk 0:04:52.2]} 4... e5 {[%clk 0:04:54.8]} 5. Nc3 {[%clk 0:04:44.9]} 5...
Be7 {[%clk 0:04:52.5]} 6. e4 {[%clk 0:04:43.7]} 6... Nbd7 {[%clk 0:04:52.2]} 7.
Bg2 {[%clk 0:04:43]} 7... Nf8 {[%clk 0:04:51.3]} 8. Nge2 {[%clk 0:04:41.7]} 8...
Ng6 {[%clk 0:04:50.6]} 9. O-O {[%clk 0:04:40.8]} 9... h5 {[%clk 0:04:49.5]} 10.
Bg5 {[%clk 0:04:38]} 10... h4 {[%clk 0:04:48.1]} 11. Bxh4 {[%clk 0:04:35.7]}
11... Nxh4 {[%clk 0:04:47.4]} 12. gxh4 {[%clk 0:04:35.3]} 12... Rxh4 {[%clk
0:04:46.4]} 13. Ng3 {[%clk 0:04:34.9]} 13... Bg4 {[%clk 0:04:31.4]} 14. Qb3
{[%clk 0:04:27.3]} 14... Qd7 {[%clk 0:04:29.7]} 15. f3 {[%clk 0:04:23.8]} 15...
Bh3 {[%clk 0:04:27.8]} 16. Bxh3 {[%clk 0:04:22.3]} 16... Rxh3 {[%clk 0:04:26.9]}
17. a4 {[%clk 0:04:12.9]} 17... O-O-O {[%clk 0:04:25.7]} 18. a5 {[%clk 0:04:09]}
18... Rdh8 {[%clk 0:04:24.3]} 19. a6 {[%clk 0:04:04.8]} 19... b6 {[%clk
0:04:20.5]} 20. Qb5 {[%clk 0:04:04.4]} 20... Rxh2 {[%clk 0:04:08.5]} 21. Qxd7+
{[%clk 0:03:58.6]} 21... Nxd7 {[%clk 0:04:07.3]} 22. Nb5 {[%clk 0:03:50]} 22...
Kb8 {[%clk 0:04:01.4]} 23. Rf2 {[%clk 0:03:45]} 23... Rxf2 {[%clk 0:03:57]} 24.
Kxf2 {[%clk 0:03:44.9]} 24... Bh4 {[%clk 0:03:55.8]} 25. Nxd6 {[%clk 0:03:39.8]}
25... f6 {[%clk 0:03:38.6]} 26. Kg2 {[%clk 0:03:37.8]} 26... Bxg3 {[%clk
0:03:31.1]} 27. Kxg3 {[%clk 0:03:31.9]} 27... Rh6 {[%clk 0:03:15.8]} 28. Nf5
{[%clk 0:03:19.9]} 28... Rg6+ {[%clk 0:03:13.9]} 29. Kh4 {[%clk 0:03:18.9]}
29... Kc7 {[%clk 0:03:09.9]} 30. d6+ {[%clk 0:03:12.5]} 30... Kc6 {[%clk
0:03:07]} 31. Ne7+ {[%clk 0:03:11.2]} 1-0

[Event "Live Chess"]
[Site "Chess.com"]
[Date "2023.05.21"]
[Round "-"]
[White "NAZRIZ1977"]
[Black "GMHarry-youtube"]
[Result "0-1"]
[WhiteElo "2051"]
[BlackElo "2023"]
[TimeControl "300"]
[EndTime "16:43:49 PDT"]
[Termination "GMHarry-youtube won by resignation"]

1. d4 {[%clk 0:04:54.9]} 1... Nf6 {[%clk 0:04:55.7]} 2. Nc3 {[%clk 0:04:54]}
2... d5 {[%clk 0:04:54.1]} 3. Bf4 {[%clk 0:04:53.2]} 3... c5 {[%clk 0:04:52.7]}
4. e3 {[%clk 0:04:52.1]} 4... cxd4 {[%clk 0:04:52.2]} 5. exd4 {[%clk 0:04:51.1]}
5... Bg4 {[%clk 0:04:51.4]} 6. f3 {[%clk 0:04:49.3]} 6... Bd7 {[%clk 0:04:50.9]}
7. g4 {[%clk 0:04:42.1]} 7... h6 {[%clk 0:04:47.2]} 8. h4 {[%clk 0:04:40.3]}
8... e6 {[%clk 0:04:43.9]} 9. a4 {[%clk 0:04:37]} 9... Nc6 {[%clk 0:04:43]} 10.
Nb5 {[%clk 0:04:35.8]} 10... Rc8 {[%clk 0:04:39.3]} 11. Nd6+ {[%clk 0:04:28.3]}
11... Bxd6 {[%clk 0:04:36.4]} 12. Bxd6 {[%clk 0:04:28.2]} 12... Qa5+ {[%clk
0:04:35.6]} 13. c3 {[%clk 0:04:25.9]} 13... Qb6 {[%clk 0:04:31.7]} 14. Qd2
{[%clk 0:04:16.6]} 14... Nxd4 {[%clk 0:04:27.2]} 15. Qxd4 {[%clk 0:04:10.3]}
15... Qxd6 {[%clk 0:04:24.9]} 16. Ne2 {[%clk 0:04:06.3]} 16... Qc5 {[%clk
0:04:22.8]} 17. Qxc5 {[%clk 0:04:04.4]} 17... Rxc5 {[%clk 0:04:22.7]} 18. Nf4
{[%clk 0:03:59.6]} 18... e5 {[%clk 0:04:14.3]} 19. Nd3 {[%clk 0:03:58]} 19...
Rc6 {[%clk 0:04:13.3]} 20. Kf2 {[%clk 0:03:51.2]} 20... e4 {[%clk 0:04:11.7]}
21. Nb4 {[%clk 0:03:41.1]} 21... Re6 {[%clk 0:04:07.5]} 22. Bb5 {[%clk
0:03:33.1]} 22... exf3 {[%clk 0:03:59.6]} 23. g5 {[%clk 0:03:25.4]} 23... hxg5
{[%clk 0:03:57.4]} 24. hxg5 {[%clk 0:03:23.2]} 24... Rxh1 {[%clk 0:03:57.3]} 25.
Rxh1 {[%clk 0:03:22.2]} 25... Ne4+ {[%clk 0:03:57.2]} 26. Kxf3 {[%clk
0:03:16.4]} 26... Nxg5+ {[%clk 0:03:56.5]} 27. Kf4 {[%clk 0:03:11.7]} 27... Bxb5
{[%clk 0:03:53.8]} 28. axb5 {[%clk 0:03:04]} 28... f6 {[%clk 0:03:47.9]} 29.
Nxd5 {[%clk 0:02:59.6]} 29... Re4+ {[%clk 0:03:46.7]} 30. Kg3 {[%clk 0:02:57.8]}
30... Re5 {[%clk 0:03:44.7]} 31. c4 {[%clk 0:02:45.7]} 31... Re4 {[%clk
0:03:38.6]} 32. b3 {[%clk 0:02:41]} 32... Rd4 {[%clk 0:03:33.7]} 33. Rh8+ {[%clk
0:02:38.2]} 33... Kf7 {[%clk 0:03:32.3]} 34. Rb8 {[%clk 0:02:34.8]} 34... Rd3+
{[%clk 0:03:30.4]} 35. Kf4 {[%clk 0:02:29.7]} 35... Ne6+ {[%clk 0:03:15.9]} 36.
Kf5 {[%clk 0:02:20.6]} 36... Nc5 {[%clk 0:02:58.9]} 37. b4 {[%clk 0:02:17.5]}
37... Rd4 {[%clk 0:02:54.7]} 38. Nxf6 {[%clk 0:02:11.4]} 38... g6+ {[%clk
0:02:26.4]} 39. Ke5 {[%clk 0:01:59.5]} 39... Nd7+ {[%clk 0:02:25.2]} 40. Kxd4
{[%clk 0:01:39.1]} 40... Nxb8 {[%clk 0:02:23.5]} 41. Ne4 {[%clk 0:01:38.7]}
41... Ke7 {[%clk 0:02:17.2]} 42. c5 {[%clk 0:01:31.9]} 42... Ke6 {[%clk
0:02:04.8]} 43. b6 {[%clk 0:01:20.8]} 43... Nc6+ {[%clk 0:01:59.3]} 44. Kc4
{[%clk 0:01:18.8]} 44... a6 {[%clk 0:01:42.6]} 45. Nd6 {[%clk 0:01:13.5]} 45...
Nd8 {[%clk 0:01:36.6]} 46. Nxb7 {[%clk 0:01:09.8]} 46... Nxb7 {[%clk 0:01:34.6]}
47. c6 {[%clk 0:01:08.8]} 47... Nd8 {[%clk 0:01:11.8]} 48. c7 {[%clk 0:01:06.5]}
48... Kd7 {[%clk 0:01:10.6]} 49. cxd8=Q+ {[%clk 0:00:27.3]} 49... Kxd8 {[%clk
0:01:08]} 50. Kd5 {[%clk 0:00:27.2]} 50... Kc8 {[%clk 0:01:05.5]} 51. Ke5 {[%clk
0:00:25.7]} 51... Kb7 {[%clk 0:01:04.8]} 52. Kf6 {[%clk 0:00:25.2]} 52... Kxb6
{[%clk 0:01:04.4]} 53. Kxg6 {[%clk 0:00:24.8]} 53... Kb5 {[%clk 0:01:04]} 54.
Kf5 {[%clk 0:00:24.7]} 54... Kxb4 {[%clk 0:01:03.6]} 55. Ke4 {[%clk 0:00:24.6]}
55... Kc3 {[%clk 0:01:01.3]} 0-1

[Event "Live Chess"]
[Site "Chess.com"]
[Date "2023.05.21"]
[Round "-"]
[White "Biranidun"]
[Black "1600x"]
[Result "1-0"]
[WhiteElo "2654"]
[BlackElo "1835"]
[TimeControl "300"]
[EndTime "16:44:03 PDT"]
[Termination "Biranidun won by checkmate"]

1. e4 {[%clk 0:04:59.1]} 1... d5 {[%clk 0:04:56.7]} 2. exd5 {[%clk 0:04:58.4]}
2... Qxd5 {[%clk 0:04:54.1]} 3. Nc3 {[%clk 0:04:57.7]} 3... Qe5+ {[%clk
0:04:52.2]} 4. Be2 {[%clk 0:04:56.8]} 4... c5 {[%clk 0:04:49.7]} 5. Nf3 {[%clk
0:04:55.6]} 5... Qf6 {[%clk 0:04:48.5]} 6. d4 {[%clk 0:04:53.6]} 6... Qb6 {[%clk
0:04:47]} 7. Nd5 {[%clk 0:04:52.4]} 7... Qd8 {[%clk 0:04:45.5]} 8. dxc5 {[%clk
0:04:50.9]} 8... Nf6 {[%clk 0:04:43.3]} 9. Nxf6+ {[%clk 0:04:47]} 9... gxf6
{[%clk 0:04:41.7]} 10. Qxd8+ {[%clk 0:04:46.5]} 10... Kxd8 {[%clk 0:04:40.4]}
11. Be3 {[%clk 0:04:46.3]} 11... Ke8 {[%clk 0:04:39.3]} 12. O-O-O {[%clk
0:04:46.2]} 12... Rg8 {[%clk 0:04:37.9]} 13. Bb5+ {[%clk 0:04:44.9]} 13... Bd7
{[%clk 0:04:35.9]} 14. Rxd7 {[%clk 0:04:43.2]} 14... Nxd7 {[%clk 0:04:34.1]} 15.
Rd1 {[%clk 0:04:42.7]} 15... Rd8 {[%clk 0:04:32.6]} 16. Nd4 {[%clk 0:04:29.6]}
16... a6 {[%clk 0:04:30.6]} 17. Ba4 {[%clk 0:04:28.4]} 17... Rxg2 {[%clk
0:04:26.4]} 18. c6 {[%clk 0:04:27.6]} 18... Nc5 {[%clk 0:04:25]} 19. c7+ {[%clk
0:04:22.4]} 19... Nxa4 {[%clk 0:04:22.6]} 20. cxd8=Q+ {[%clk 0:04:15.9]} 20...
Kxd8 {[%clk 0:04:17.1]} 21. Ne6+ {[%clk 0:04:15.8]} 21... Ke8 {[%clk 0:04:15.8]}
22. Rd8# {[%clk 0:04:15.7]} 1-0

[Event "Live Chess"]
[Site "Chess.com"]
[Date "2023.05.21"]
[Round "-"]
[White "jimwad"]
[Black "Jo1ts"]
[Result "1-0"]
[WhiteElo "1216"]
[BlackElo "792"]
[TimeControl "300"]
[EndTime "16:44:06 PDT"]
[Termination "jimwad won by resignation"]

1. c4 {[%clk 0:04:58.8]} 1... d5 {[%clk 0:04:56.9]} 2. cxd5 {[%clk 0:04:57.2]}
2... Qxd5 {[%clk 0:04:55.1]} 3. Nc3 {[%clk 0:04:56.3]} 3... Qd8 {[%clk
0:04:53.3]} 4. Nf3 {[%clk 0:04:55.2]} 4... Nf6 {[%clk 0:04:50.1]} 5. d4 {[%clk
0:04:54.1]} 5... Bg4 {[%clk 0:04:45]} 6. e4 {[%clk 0:04:50.5]} 6... e6 {[%clk
0:04:36.3]} 7. Be2 {[%clk 0:04:48.3]} 7... Nbd7 {[%clk 0:04:35.5]} 8. O-O {[%clk
0:04:47.1]} 8... Bd6 {[%clk 0:04:24.5]} 9. e5 {[%clk 0:04:44.7]} 9... Bxe5
{[%clk 0:04:17]} 10. dxe5 {[%clk 0:04:43.1]} 10... Nh5 {[%clk 0:04:10.2]} 11. h3
{[%clk 0:04:32.3]} 11... Bxh3 {[%clk 0:04:03.7]} 12. gxh3 {[%clk 0:04:30]} 12...
f6 {[%clk 0:04:01.3]} 13. exf6 {[%clk 0:04:28]} 13... Qxf6 {[%clk 0:04:01.2]}
14. Kh1 {[%clk 0:04:05.2]} 14... Qg6 {[%clk 0:03:47.8]} 15. Rg1 {[%clk
0:04:01.1]} 15... Qf5 {[%clk 0:03:42]} 16. Ng5 {[%clk 0:03:21.4]} 16... h6
{[%clk 0:03:37.8]} 17. Qd3 {[%clk 0:03:15.2]} 17... hxg5 {[%clk 0:03:30.7]} 18.
Qxf5 {[%clk 0:03:13.9]} 18... exf5 {[%clk 0:03:30]} 19. Bxg5 {[%clk 0:03:12.4]}
19... g6 {[%clk 0:03:14.5]} 20. Bxh5 {[%clk 0:03:05.2]} 20... Rxh5 {[%clk
0:03:11.7]} 21. h4 {[%clk 0:03:04.3]} 21... Ne5 {[%clk 0:03:07.4]} 22. Rae1
{[%clk 0:03:01.3]} 22... Kf7 {[%clk 0:02:49.5]} 23. Rxe5 {[%clk 0:02:58.9]}
23... Re8 {[%clk 0:02:45.4]} 24. Rxe8 {[%clk 0:02:56.2]} 24... Kxe8 {[%clk
0:02:45.3]} 25. Re1+ {[%clk 0:02:55]} 25... Kd7 {[%clk 0:02:44.3]} 26. Re7+
{[%clk 0:02:49.3]} 26... Kc6 {[%clk 0:02:41.9]} 27. Re6+ {[%clk 0:02:46.8]}
27... Kd7 {[%clk 0:02:40.9]} 28. Rxg6 {[%clk 0:02:45.3]} 28... b6 {[%clk
0:02:37.2]} 29. Rg7+ {[%clk 0:02:43.4]} 29... Kc8 {[%clk 0:02:34.1]} 30. Nd5
{[%clk 0:02:39.2]} 30... Rh8 {[%clk 0:02:25.6]} 31. Rxc7+ {[%clk 0:02:33.8]} 1-0

[Event "Live Chess"]
[Site "Chess.com"]
[Date "2023.05.21"]
[Round "-"]
[White "karimghalambaz"]
[Black "wadsy27"]
[Result "0-1"]
[WhiteElo "1273"]
[BlackElo "2573"]
[TimeControl "300"]
[EndTime "16:44:19 PDT"]
[Termination "wadsy27 won by checkmate"]

1. d4 {[%clk 0:04:52.4]} 1... d5 {[%clk 0:04:58.4]} 2. Bf4 {[%clk 0:04:47.3]}
2... Nf6 {[%clk 0:04:54.1]} 3. e3 {[%clk 0:04:45.8]} 3... c5 {[%clk 0:04:43.5]}
4. c3 {[%clk 0:04:44]} 4... Nc6 {[%clk 0:04:39.6]} 5. Nd2 {[%clk 0:04:42.4]}
5... Bg4 {[%clk 0:04:37.4]} 6. Be2 {[%clk 0:04:38.8]} 6... Bxe2 {[%clk
0:04:31.6]} 7. Qxe2 {[%clk 0:04:18.2]} 7... e6 {[%clk 0:04:28.3]} 8. Ngf3 {[%clk
0:04:16]} 8... Bd6 {[%clk 0:04:24.7]} 9. Ne5 {[%clk 0:04:09.3]} 9... O-O {[%clk
0:04:18.1]} 10. O-O {[%clk 0:04:01.8]} 10... Qc7 {[%clk 0:04:17.3]} 11. Ndf3
{[%clk 0:03:56.9]} 11... Nd7 {[%clk 0:04:15.9]} 12. Nxc6 {[%clk 0:03:40.8]}
12... Qxc6 {[%clk 0:04:14.8]} 13. Ne5 {[%clk 0:03:30.3]} 13... Nxe5 {[%clk
0:04:06.8]} 14. dxe5 {[%clk 0:03:28.1]} 14... Be7 {[%clk 0:04:05.6]} 15. Bg3
{[%clk 0:03:24.4]} 15... a5 {[%clk 0:04:00.8]} 16. f4 {[%clk 0:03:21.9]} 16...
Qa6 {[%clk 0:03:58.4]} 17. Qd2 {[%clk 0:03:14.9]} 17... g6 {[%clk 0:03:55.8]}
18. Rae1 {[%clk 0:03:06.5]} 18... b5 {[%clk 0:03:52.2]} 19. e4 {[%clk 0:03:04]}
19... Rfd8 {[%clk 0:03:48.2]} 20. exd5 {[%clk 0:03:01.2]} 20... Rxd5 {[%clk
0:03:47.3]} 21. Qc2 {[%clk 0:02:54.8]} 21... Rad8 {[%clk 0:03:45.6]} 22. Rd1
{[%clk 0:02:50.7]} 22... c4 {[%clk 0:03:44.9]} 23. Rxd5 {[%clk 0:02:48.4]} 23...
Rxd5 {[%clk 0:03:44.8]} 24. Rd1 {[%clk 0:02:43.1]} 24... Qa7+ {[%clk 0:03:41.7]}
25. Kh1 {[%clk 0:02:38.3]} 25... Qd7 {[%clk 0:03:40.7]} 26. Rxd5 {[%clk
0:02:33.9]} 26... Qxd5 {[%clk 0:03:40.6]} 27. h3 {[%clk 0:02:31]} 27... h5
{[%clk 0:03:39.6]} 28. Bf2 {[%clk 0:02:26.1]} 28... b4 {[%clk 0:03:32]} 29. Bd4
{[%clk 0:02:16.6]} 29... Qb5 {[%clk 0:03:20.7]} 30. Kh2 {[%clk 0:02:12.3]} 30...
h4 {[%clk 0:03:09.6]} 31. Qf2 {[%clk 0:02:05.1]} 31... b3 {[%clk 0:03:05.4]} 32.
a3 {[%clk 0:02:02.4]} 32... Bxa3 {[%clk 0:03:01.1]} 33. Qxh4 {[%clk 0:01:47.8]}
33... Bf8 {[%clk 0:01:49.4]} 34. g4 {[%clk 0:01:36.7]} 34... a4 {[%clk 0:01:41]}
35. f5 {[%clk 0:01:32.2]} 35... a3 {[%clk 0:01:37.9]} 36. fxg6 {[%clk
0:01:28.1]} 36... fxg6 {[%clk 0:01:36]} 37. Qf2 {[%clk 0:01:15.8]} 37... a2
{[%clk 0:01:28.9]} 38. Qe1 {[%clk 0:01:10.9]} 38... Qd5 {[%clk 0:01:21.3]} 39.
Qf1 {[%clk 0:00:59.9]} 39... Bg7 {[%clk 0:01:10.8]} 40. g5 {[%clk 0:00:47]}
40... Bxe5+ {[%clk 0:01:06.5]} 41. Bxe5 {[%clk 0:00:38.9]} 41... Qxe5+ {[%clk
0:01:05.1]} 42. Kh1 {[%clk 0:00:30.3]} 42... Qf5 {[%clk 0:01:03.1]} 43. Qxc4
{[%clk 0:00:21.1]} 43... a1=Q+ {[%clk 0:01:01.2]} 44. Kh2 {[%clk 0:00:16.6]}
44... Qf2# {[%clk 0:00:59.5]} 0-1

[Event "Live Chess"]
[Site "Chess.com"]
[Date "2023.05.21"]
[Round "-"]
[White "gmnorfolk"]
[Black "KeithArkell"]
[Result "0-1"]
[WhiteElo "2124"]
[BlackElo "2613"]
[TimeControl "300"]
[EndTime "16:44:47 PDT"]
[Termination "KeithArkell won by checkmate"]

1. d4 {[%clk 0:04:56.3]} 1... e6 {[%clk 0:04:58.5]} 2. c4 {[%clk 0:04:50.9]}
2... Bb4+ {[%clk 0:04:57.4]} 3. Nc3 {[%clk 0:04:44.9]} 3... c5 {[%clk
0:04:50.6]} 4. e3 {[%clk 0:04:28.6]} 4... Bxc3+ {[%clk 0:04:46.7]} 5. bxc3
{[%clk 0:04:27.1]} 5... f5 {[%clk 0:04:46.6]} 6. Bd3 {[%clk 0:04:24.7]} 6... Nf6
{[%clk 0:04:45.8]} 7. Ne2 {[%clk 0:04:23.7]} 7... d6 {[%clk 0:04:45.2]} 8. O-O
{[%clk 0:04:21.8]} 8... e5 {[%clk 0:04:44.8]} 9. f3 {[%clk 0:04:18.1]} 9... Nc6
{[%clk 0:04:40.1]} 10. Qc2 {[%clk 0:04:14.4]} 10... g6 {[%clk 0:04:38.3]} 11. e4
{[%clk 0:04:08.7]} 11... f4 {[%clk 0:04:37]} 12. g3 {[%clk 0:03:59]} 12... g5
{[%clk 0:04:35.9]} 13. Kh1 {[%clk 0:03:55]} 13... Bh3 {[%clk 0:04:31.7]} 14. Rg1
{[%clk 0:03:53.3]} 14... Qe7 {[%clk 0:04:30.7]} 15. Rb1 {[%clk 0:03:41.6]} 15...
O-O-O {[%clk 0:04:27.3]} 16. Qa4 {[%clk 0:03:35.1]} 16... Qc7 {[%clk 0:04:16.6]}
17. Rb5 {[%clk 0:03:24.3]} 17... a6 {[%clk 0:04:12.5]} 18. Rb2 {[%clk 0:03:08]}
18... Rhg8 {[%clk 0:04:11]} 19. Qa3 {[%clk 0:02:51.6]} 19... Ne7 {[%clk
0:04:00.3]} 20. Bd2 {[%clk 0:02:29.1]} 20... g4 {[%clk 0:03:46.2]} 21. gxf4
{[%clk 0:02:23.4]} 21... gxf3 {[%clk 0:03:45]} 22. Ng3 {[%clk 0:02:17.7]} 22...
f2 {[%clk 0:03:43.1]} 23. Rgb1 {[%clk 0:02:07.1]} 23... Nh5 {[%clk 0:03:40.7]}
24. Qb3 {[%clk 0:01:05.1]} 24... Nxf4 {[%clk 0:03:38.4]} 25. Bxf4 {[%clk
0:00:47.8]} 25... exf4 {[%clk 0:03:38.3]} 26. Qxb7+ {[%clk 0:00:42.9]} 26...
Qxb7 {[%clk 0:03:37.4]} 27. Rxb7 {[%clk 0:00:42.4]} 27... fxg3 {[%clk
0:03:36.6]} 28. hxg3 {[%clk 0:00:40.3]} 28... Rxg3 {[%clk 0:03:34.2]} 29. Be2
{[%clk 0:00:25.2]} 29... Re3 {[%clk 0:03:11.2]} 30. Rxe7 {[%clk 0:00:19.4]}
30... Rxe2 {[%clk 0:03:07.9]} 31. Rbb7 {[%clk 0:00:17.6]} 31... f1=Q# {[%clk
0:03:06.7]} 0-1